Department,Entity,Date of Payment,Expense Type,Expense Area,Supplier,Transaction Number,Amount,Description,Supplier Postcode
"Department for Business, Innovation and Skills",UK Shared Business Services Ltd,01/09/2022,Staff Training,HRSD Recoverables,Chartered Institute of Personnel and Development (CIPD),99784995,897.6,Training,SW19 1JQ
"Department for Business, Innovation and Skills",UK Shared Business Services Ltd,01/09/2022,UK - Professional Memberships & Subscriptions,Procurement Policy & Strategy,Dun & Bradstreet Ltd,99789537,"6,146.40",Professional Memberships,W2 1AF
"Department for Business, Innovation and Skills",UK Shared Business Services Ltd,01/09/2022,IT Cloud Services,Production Services,FlyForm Ltd,99789796,"4,999.20",Computing Software,CF10 3AG
"Department for Business, Innovation and Skills",UK Shared Business Services Ltd,01/09/2022,T&S - Vehicle Hire,Finance Services,Enterprise Rent-A-Car UK Ltd,99790732,119.49, 21/8/22-24/8/22,GL2 5DA
"Department for Business, Innovation and Skills",UK Shared Business Services Ltd,01/09/2022,T&S - Vehicle Hire,Finance Services,Enterprise Rent-A-Car UK Ltd,99790732,23.9,SR11256254 / SR11256260 MONTHLY CAR RENTAL,GL2 5DA
"Department for Business, Innovation and Skills",UK Shared Business Services Ltd,01/09/2022,T&S - Vehicle Hire,Operational Excellence,Enterprise Rent-A-Car UK Ltd,99790732,141.94, 16/8/22-19/8/22,GL2 5DA
"Department for Business, Innovation and Skills",UK Shared Business Services Ltd,01/09/2022,T&S - Vehicle Hire,Operational Excellence,Enterprise Rent-A-Car UK Ltd,99790732,28.39,SR11256254 / SR11256260 MONTHLY CAR RENTAL,GL2 5DA
"Department for Business, Innovation and Skills",UK Shared Business Services Ltd,01/09/2022,IT Cloud Services,Production Services,Jisc Services Ltd,99790768,540,NREN Fee June 2022 - Year 1,OX11 0SG
"Department for Business, Innovation and Skills",UK Shared Business Services Ltd,01/09/2022,Health & Safety (inc. Medicals & Opticians),Facilities,AM Health & Safety Ltd,99790881,63,Professional Services,SN5 6BD
"Department for Business, Innovation and Skills",UK Shared Business Services Ltd,01/09/2022,T&S - Parking Tolls Congestion Charges,"D&I Digital, Data & Analytics",Unspecified,99791858,14,"Parking, Tolls, Congestion Charge",HOME
"Department for Business, Innovation and Skills",UK Shared Business Services Ltd,02/09/2022,T&S - Other Charges,Corporate Finance,Unspecified,99781455,159.99,Home-working Equipment,HOME
"Department for Business, Innovation and Skills",UK Shared Business Services Ltd,02/09/2022,Health & Safety (inc. Medicals & Opticians),People,Health Assured Ltd,99790189,282,Professional Services,M4 4FB
"Department for Business, Innovation and Skills",UK Shared Business Services Ltd,02/09/2022,Staff Training,HRSD Recoverables,ASK Europe PLC,99791117,504,Training,MK43 0BT
"Department for Business, Innovation and Skills",UK Shared Business Services Ltd,02/09/2022,Staff Training,HRSD Recoverables,ASK Europe PLC,99791118,840,Training,MK43 0BT
"Department for Business, Innovation and Skills",UK Shared Business Services Ltd,02/09/2022,Staff Training,HRSD Recoverables,ASK Europe PLC,99791120,840,Training,MK43 0BT
"Department for Business, Innovation and Skills",UK Shared Business Services Ltd,02/09/2022,Insurance,Corporate Finance,Marsh Ltd,99791131,"4,284.00",Financial Services,NR7 7BH
"Department for Business, Innovation and Skills",UK Shared Business Services Ltd,02/09/2022,Insurance,Corporate Finance,Marsh Ltd,99791132,975,Financial Services,NR7 7BH
"Department for Business, Innovation and Skills",UK Shared Business Services Ltd,02/09/2022,Insurance,Corporate Finance,Marsh Ltd,99791135,420,Financial Services,NR7 7BH
"Department for Business, Innovation and Skills",UK Shared Business Services Ltd,02/09/2022,Printing & Stationery,Production Services,Konica Minolta Business Solutions (UK) Ltd,99791193,"4,182.91",Computer Consumables,SS14 3AR
"Department for Business, Innovation and Skills",UK Shared Business Services Ltd,02/09/2022,Other Staff Benefits,Resourcing,BMI Healthcare Limited,99791901,"1,359.50",ZZ-Employee Benefits,SE3 9LG
"Department for Business, Innovation and Skills",UK Shared Business Services Ltd,02/09/2022,Other Staff Benefits,Resourcing,BMI Healthcare Limited,99791903,333,ZZ-Employee Benefits,SE3 9LG
"Department for Business, Innovation and Skills",UK Shared Business Services Ltd,02/09/2022,Consultancy Services,"Risk, Information & Security Compliance",Risk Evolves Ltd,99792128,"3,420.00",Consultancy Services,CV31 1XT
"Department for Business, Innovation and Skills",UK Shared Business Services Ltd,02/09/2022,T&S - Vehicle Hire,Contact Centres,Unspecified,99792197,35.01,Vehicle Hire/Rental/Fuel (Actuals),HOME
"Department for Business, Innovation and Skills",UK Shared Business Services Ltd,05/09/2022,GPC Clearing - SSC,Balance Sheet,Unspecified,99787098,"-1,384.80",Unspecified,HOME
"Department for Business, Innovation and Skills",UK Shared Business Services Ltd,05/09/2022,GPC Sundry Expenditure,D&I Management,Unspecified,99787098,"1,384.80",GPC_Miscellaneous GPC Expenditure,HOME
"Department for Business, Innovation and Skills",UK Shared Business Services Ltd,05/09/2022,GPC Clearing - SSC,Balance Sheet,Unspecified,99787101,-129,Unspecified,HOME
"Department for Business, Innovation and Skills",UK Shared Business Services Ltd,05/09/2022,GPC Sundry Expenditure,Contact Centres,Unspecified,99787101,129,GPC_Miscellaneous GPC Expenditure,HOME
"Department for Business, Innovation and Skills",UK Shared Business Services Ltd,05/09/2022,Recruitment Costs,Corporate HR,Everwell Occupational Health Ltd,99790955,966,Professional Services,CW11 3AE
"Department for Business, Innovation and Skills",UK Shared Business Services Ltd,05/09/2022,Printing & Stationery,Production Services,Konica Minolta Business Solutions (UK) Ltd,99791199,"2,560.61",Computer Consumables,SS14 3AR
"Department for Business, Innovation and Skills",UK Shared Business Services Ltd,05/09/2022,Printing & Stationery,Production Services,Konica Minolta Business Solutions (UK) Ltd,99791199,644.47,Computer Consumables,SS14 3AR
"Department for Business, Innovation and Skills",UK Shared Business Services Ltd,05/09/2022,Printing & Stationery,Production Services,Konica Minolta Business Solutions (UK) Ltd,99791202,"2,079.04",Computer Consumables,SS14 3AR
"Department for Business, Innovation and Skills",UK Shared Business Services Ltd,05/09/2022,Contract Staff,Production Services,Alexander Mann Solutions Ltd,99791417,"6,159.24",Recruitment Services,EC2N 3AQ
"Department for Business, Innovation and Skills",UK Shared Business Services Ltd,05/09/2022,Contract Staff,Production Services,Alexander Mann Solutions Ltd,99791480,"2,648.52",Recruitment Services,EC2N 3AQ
"Department for Business, Innovation and Skills",UK Shared Business Services Ltd,05/09/2022,Contract Staff,SHARP,Alexander Mann Solutions Ltd,99791507,"3,387.66",Recruitment Services,EC2N 3AQ
"Department for Business, Innovation and Skills",UK Shared Business Services Ltd,05/09/2022,Contract Staff,Project Office,Alexander Mann Solutions Ltd,99791508,"3,649.14",Recruitment Services,EC2N 3AQ
"Department for Business, Innovation and Skills",UK Shared Business Services Ltd,05/09/2022,T&S - Other Charges,Accounting,Unspecified,99791551,5,Miscellaneous (Actuals),HOME
"Department for Business, Innovation and Skills",UK Shared Business Services Ltd,05/09/2022,T&S - Subsistence,Accounting,Unspecified,99791551,5.75,Breakfast (Actuals),HOME
"Department for Business, Innovation and Skills",UK Shared Business Services Ltd,05/09/2022,T&S - Subsistence,Accounting,Unspecified,99791551,8.3,Lunch (Actuals),HOME
"Department for Business, Innovation and Skills",UK Shared Business Services Ltd,05/09/2022,Computing Consumables,Production Services,Unspecified,99791855,133.24,GPC_Computer Consumables,HOME
"Department for Business, Innovation and Skills",UK Shared Business Services Ltd,05/09/2022,GPC Clearing - SSC,Balance Sheet,Unspecified,99791855,-133.24,Unspecified,HOME
"Department for Business, Innovation and Skills",UK Shared Business Services Ltd,05/09/2022,Computing Consumables,Production Services,Unspecified,99791856,160.74,GPC_Computer Consumables,HOME
"Department for Business, Innovation and Skills",UK Shared Business Services Ltd,05/09/2022,GPC Clearing - SSC,Balance Sheet,Unspecified,99791856,-160.74,Unspecified,HOME
"Department for Business, Innovation and Skills",UK Shared Business Services Ltd,05/09/2022,Computing Consumables,D&I Management,Unspecified,99791857,29.88,GPC_Computer Consumables,HOME
"Department for Business, Innovation and Skills",UK Shared Business Services Ltd,05/09/2022,GPC Clearing - SSC,Balance Sheet,Unspecified,99791857,-29.88,Unspecified,HOME
"Department for Business, Innovation and Skills",UK Shared Business Services Ltd,05/09/2022,Agency Staff,ROE Application Upgrade,Alexander Mann Solutions Ltd,99793110,"4,090.44",Recruitment Services,EC2N 3AQ
"Department for Business, Innovation and Skills",UK Shared Business Services Ltd,05/09/2022,Contract Staff,Production Services,Alexander Mann Solutions Ltd,99793113,"3,465.30",Recruitment Services,EC2N 3AQ
"Department for Business, Innovation and Skills",UK Shared Business Services Ltd,05/09/2022,Contract Staff,Corporate HR,Alexander Mann Solutions Ltd,99793141,"3,780.36",Recruitment Services,EC2N 3AQ
"Department for Business, Innovation and Skills",UK Shared Business Services Ltd,05/09/2022,Other Staff Benefits,People,Amazon EU SARL,99793212,"2,350.00",ZZ-Employee Benefits,EC2A 2FA
"Department for Business, Innovation and Skills",UK Shared Business Services Ltd,06/09/2022,Computing Consumables,Production Services,Probrand Ltd,99789416,442.8,Computer Consumables,SMARTFORM
"Department for Business, Innovation and Skills",UK Shared Business Services Ltd,06/09/2022,Computing Consumables,Production Services,Probrand Ltd,99789416,6,Computer Consumables,SMARTFORM
"Department for Business, Innovation and Skills",UK Shared Business Services Ltd,06/09/2022,Computing Consumables,Production Services,Probrand Ltd,99789425,91.48,Computer Consumables,SMARTFORM
"Department for Business, Innovation and Skills",UK Shared Business Services Ltd,06/09/2022,T&S - Other Charges,Tier 1 ROE Transactions,Unspecified,99795499,482.93,Home-working Equipment,HOME
"Department for Business, Innovation and Skills",UK Shared Business Services Ltd,06/09/2022,T&S - Parking Tolls Congestion Charges,Finance Operations 2,Unspecified,99795500,8,"Parking, Tolls, Congestion Charge",HOME
"Department for Business, Innovation and Skills",UK Shared Business Services Ltd,06/09/2022,T&S - Subsistence,Finance Operations 2,Unspecified,99795500,75.34,Evening Meal (Actuals),HOME
"Department for Business, Innovation and Skills",UK Shared Business Services Ltd,06/09/2022,T&S - Vehicle Hire,Finance Operations 2,Unspecified,99795500,102.68,Vehicle Hire/Rental/Fuel (Actuals),HOME
"Department for Business, Innovation and Skills",UK Shared Business Services Ltd,06/09/2022,T&S - Mileage,Operational Excellence,Unspecified,99795501,172.8,Mileage - Car (excl Home to Office),HOME
"Department for Business, Innovation and Skills",UK Shared Business Services Ltd,06/09/2022,T&S - Vehicle Hire,Finance Services,Enterprise Rent-A-Car UK Ltd,99795543,86.58,,GL2 5DA
"Department for Business, Innovation and Skills",UK Shared Business Services Ltd,06/09/2022,T&S - Vehicle Hire,Finance Services,Enterprise Rent-A-Car UK Ltd,99795543,17.32,SR 11265256 CAR HIRE,GL2 5DA
"Department for Business, Innovation and Skills",UK Shared Business Services Ltd,07/09/2022,T&S - Vehicle Hire,Finance Operations 1,Unspecified,99797431,94.91,Vehicle Hire/Rental/Fuel (Actuals),HOME
"Department for Business, Innovation and Skills",UK Shared Business Services Ltd,08/09/2022,Consultancy Services,"Risk, Information & Security Compliance",Risk Evolves Ltd,99796595,"2,040.00",Consultancy Services,CV31 1XT
"Department for Business, Innovation and Skills",UK Shared Business Services Ltd,08/09/2022,Consultancy Services,Production Services,Premiertec Consulting Ltd t/a Claremont,99797296,"32,810.63","Consultancy and Professional Services to develop two key work areas around API re-development and re-use, and automation of features connected to the primary and sub-processes associated with the SML process. Also included: BAU, CIs and CRs",NE1 3DY
"Department for Business, Innovation and Skills",UK Shared Business Services Ltd,08/09/2022,T&S - Other Charges,Tier 1 ROE Transactions,Unspecified,99799775,67.99,Home-working Equipment,HOME
"Department for Business, Innovation and Skills",UK Shared Business Services Ltd,08/09/2022,T&S - Mileage,D&I Infrastructure & Network Services,Unspecified,99799776,36.66,Mileage - Car (excl Home to Office),HOME
"Department for Business, Innovation and Skills",UK Shared Business Services Ltd,08/09/2022,T&S - Subsistence,D&I Infrastructure & Network Services,Unspecified,99799776,11.63,Lunch (Actuals),HOME
"Department for Business, Innovation and Skills",UK Shared Business Services Ltd,09/09/2022,Data Storage & Recovery,Finance Operations 1,The Maltings Document Storage Solutions Ltd,99796420,332.06,Computing Services,CF24 5EZ
"Department for Business, Innovation and Skills",UK Shared Business Services Ltd,09/09/2022,Recruitment Costs,Corporate HR,Agenda Resource Management Ltd,99797259,"1,396.28",Professional Services,HU12 8YJ
"Department for Business, Innovation and Skills",UK Shared Business Services Ltd,09/09/2022,Recruitment Costs,People,Onefix Recruitment Ltd,99800394,180,Recruitment Services,PO3 5EJ
"Department for Business, Innovation and Skills",UK Shared Business Services Ltd,09/09/2022,T&S - Public Transport,Partnership Management,Unspecified,99800456,2.8,Public Transport - Bus (Actuals),HOME
"Department for Business, Innovation and Skills",UK Shared Business Services Ltd,09/09/2022,T&S - Public Transport,Partnership Management,Unspecified,99800456,20,Public Transport - Taxi Fare (Actuals),HOME
"Department for Business, Innovation and Skills",UK Shared Business Services Ltd,09/09/2022,T&S - Subsistence,Partnership Management,Unspecified,99800456,4.99,Lunch (Actuals),HOME
"Department for Business, Innovation and Skills",UK Shared Business Services Ltd,12/09/2022,Agency Staff,ROE Application Upgrade,Alexander Mann Solutions Ltd,99783950,"4,090.44",Recruitment Services,EC2N 3AQ
"Department for Business, Innovation and Skills",UK Shared Business Services Ltd,12/09/2022,Computer Software Licences,Production Services,Phoenix Software Ltd,99788626,"11,574.22",Computer Consumables,YO42 1NS
"Department for Business, Innovation and Skills",UK Shared Business Services Ltd,12/09/2022,Computer Software Licences,Production Services,Softcat plc,99797341,543.76,Computer Consumables,SL7 1LW
"Department for Business, Innovation and Skills",UK Shared Business Services Ltd,12/09/2022,Computer Software Licences,ERP Support,BravoSolution UK Ltd (dba Jaggaer),99798594,"166,320.00",Computer Consumables,EC1M 4AS
"Department for Business, Innovation and Skills",UK Shared Business Services Ltd,12/09/2022,Recruitment Costs,Corporate HR,Agenda Resource Management Ltd,99800285,772.97,Professional Services,HU12 8YJ
"Department for Business, Innovation and Skills",UK Shared Business Services Ltd,12/09/2022,Agency Staff,ROE Application Upgrade,Alexander Mann Solutions Ltd,99801532,"7,362.79",Recruitment Services,EC2N 3AQ
"Department for Business, Innovation and Skills",UK Shared Business Services Ltd,12/09/2022,GPC Clearing - SSC,Balance Sheet,Unspecified,99801587,-23.98,Unspecified,HOME
"Department for Business, Innovation and Skills",UK Shared Business Services Ltd,12/09/2022,Hardware/Software Maintenance,D&I Management,Unspecified,99801587,23.98,GPC_Computer Hardware/Software Maint,HOME
"Department for Business, Innovation and Skills",UK Shared Business Services Ltd,12/09/2022,GPC Clearing - SSC,Balance Sheet,Unspecified,99801588,-47.95,Unspecified,HOME
"Department for Business, Innovation and Skills",UK Shared Business Services Ltd,12/09/2022,Hardware/Software Maintenance,D&I Management,Unspecified,99801588,47.95,GPC_Computer Hardware/Software Maint,HOME
"Department for Business, Innovation and Skills",UK Shared Business Services Ltd,12/09/2022,GPC Clearing - SSC,Balance Sheet,Unspecified,99801589,-71.98,Unspecified,HOME
"Department for Business, Innovation and Skills",UK Shared Business Services Ltd,12/09/2022,Hardware/Software Maintenance,D&I Management,Unspecified,99801589,71.98,GPC_Computer Hardware/Software Maint,HOME
"Department for Business, Innovation and Skills",UK Shared Business Services Ltd,12/09/2022,T&S - Parking Tolls Congestion Charges,"D&I Digital, Data & Analytics",Unspecified,99801590,11,"Parking, Tolls, Congestion Charge",HOME
"Department for Business, Innovation and Skills",UK Shared Business Services Ltd,12/09/2022,Contract Staff,Production Services,Alexander Mann Solutions Ltd,99802424,"2,118.82",Recruitment Services,EC2N 3AQ
"Department for Business, Innovation and Skills",UK Shared Business Services Ltd,12/09/2022,Contract Staff,Corporate HR,Alexander Mann Solutions Ltd,99802428,"2,268.22",Recruitment Services,EC2N 3AQ
"Department for Business, Innovation and Skills",UK Shared Business Services Ltd,12/09/2022,Contract Staff,Production Services,Alexander Mann Solutions Ltd,99802431,"2,772.24",Recruitment Services,EC2N 3AQ
"Department for Business, Innovation and Skills",UK Shared Business Services Ltd,12/09/2022,Contract Staff,Project Office,Alexander Mann Solutions Ltd,99802432,"2,919.31",Recruitment Services,EC2N 3AQ
"Department for Business, Innovation and Skills",UK Shared Business Services Ltd,12/09/2022,Contract Staff,SHARP,Alexander Mann Solutions Ltd,99802462,"2,710.13",Recruitment Services,EC2N 3AQ
"Department for Business, Innovation and Skills",UK Shared Business Services Ltd,13/09/2022,Printing & Stationery,Production Services,Konica Minolta Business Solutions (UK) Ltd,99785997,288,Computer Consumables,SS14 3AR
"Department for Business, Innovation and Skills",UK Shared Business Services Ltd,13/09/2022,Contract Staff,Production Services,Alexander Mann Solutions Ltd,99790046,"3,465.30",Recruitment Services,EC2N 3AQ
"Department for Business, Innovation and Skills",UK Shared Business Services Ltd,13/09/2022,Recruitment Costs,People,C and D Group Ltd t/a Thrive Group,99791365,360,Recruitment Services,SN3 4UQ
"Department for Business, Innovation and Skills",UK Shared Business Services Ltd,13/09/2022,Contract Staff,People,Alexander Mann Solutions Ltd,99791495,"2,126.47",Recruitment Services,EC2N 3AQ
"Department for Business, Innovation and Skills",UK Shared Business Services Ltd,13/09/2022,T&S - Other Charges,Payroll,Unspecified,99792196,22,Miscellaneous (Actuals),HOME
"Department for Business, Innovation and Skills",UK Shared Business Services Ltd,13/09/2022,UK - Professional Memberships & Subscriptions,Procurement Policy & Strategy,London Universities Purchasing Consortium,99801477,"8,640.00",Professional Memberships,W1T 7NZ
"Department for Business, Innovation and Skills",UK Shared Business Services Ltd,13/09/2022,UK - Professional Memberships & Subscriptions,DDaT,London Universities Purchasing Consortium,99802381,"-2,073.60",Professional Memberships,W1T 7NZ
"Department for Business, Innovation and Skills",UK Shared Business Services Ltd,13/09/2022,Staff Training,HRSD Recoverables,ASK Europe PLC,99804268,840,Training,MK43 0BT
"Department for Business, Innovation and Skills",UK Shared Business Services Ltd,13/09/2022,Staff Training,HRSD Recoverables,ASK Europe PLC,99804272,504,Training,MK43 0BT
"Department for Business, Innovation and Skills",UK Shared Business Services Ltd,13/09/2022,Staff Training,HRSD Recoverables,ASK Europe PLC,99804277,840,Training,MK43 0BT
"Department for Business, Innovation and Skills",UK Shared Business Services Ltd,13/09/2022,Staff Training,HRSD Recoverables,ASK Europe PLC,99804283,504,Training,MK43 0BT
"Department for Business, Innovation and Skills",UK Shared Business Services Ltd,13/09/2022,Staff Training,HRSD Recoverables,ASK Europe PLC,99804284,840,Training,MK43 0BT
"Department for Business, Innovation and Skills",UK Shared Business Services Ltd,13/09/2022,T&S - Parking Tolls Congestion Charges,Accounting,Unspecified,99804495,22,"Parking, Tolls, Congestion Charge",HOME
"Department for Business, Innovation and Skills",UK Shared Business Services Ltd,13/09/2022,T&S - Subsistence,Accounting,Unspecified,99804495,75.75,Evening Meal (Actuals),HOME
"Department for Business, Innovation and Skills",UK Shared Business Services Ltd,13/09/2022,T&S - Subsistence,Operational Excellence,Unspecified,99804496,49.69,Evening Meal (Actuals),HOME
"Department for Business, Innovation and Skills",UK Shared Business Services Ltd,13/09/2022,T&S - Subsistence,Operational Excellence,Unspecified,99804496,35.41,Lunch (Actuals),HOME
"Department for Business, Innovation and Skills",UK Shared Business Services Ltd,13/09/2022,T&S - Vehicle Hire,Operational Excellence,Unspecified,99804496,72.07,Vehicle Hire/Rental/Fuel (Actuals),HOME
"Department for Business, Innovation and Skills",UK Shared Business Services Ltd,13/09/2022,Telecoms - Land Line Rental,Production Services,British Telecom Plc (BT),99804917,366.01,SR11274704 REGULAR CHARGES 01/08/22 - 31/10/22 ACCOUNT VP 4107 0270,E1 8EE
"Department for Business, Innovation and Skills",UK Shared Business Services Ltd,13/09/2022,Telecoms - Land Line Rental,Production Services,British Telecom Plc (BT),99804919,"12,685.96",SR11274704 REGULAR CHARGES 01/09/22 - 30/09/22 ACCOUNT VP 6160 6770,E1 8EE
"Department for Business, Innovation and Skills",UK Shared Business Services Ltd,13/09/2022,Mobile Phone Costs,Production Services,Telefonica UK Ltd (O2),99804934,"1,474.21",SR 11274154 CALL CHARGES,SMARTFORM
"Department for Business, Innovation and Skills",UK Shared Business Services Ltd,13/09/2022,Staff Training,HRSD Recoverables,ASK Europe PLC,99806014,840,Training,MK43 0BT
"Department for Business, Innovation and Skills",UK Shared Business Services Ltd,14/09/2022,PAYE Payable Salaries,Balance Sheet,HM Revenue & Customs,99801125,"191,520.02",HMRC monthly deductions for SSC August 2022,3RD PARTY PAYME
"Department for Business, Innovation and Skills",UK Shared Business Services Ltd,14/09/2022,NI Payable Salaries,Balance Sheet,HM Revenue & Customs,99801126,"287,129.33",HMRC monthly deductions for SSC August 2022,3RD PARTY PAYME
"Department for Business, Innovation and Skills",UK Shared Business Services Ltd,14/09/2022,Student Loans,Balance Sheet,HM Revenue & Customs,99801127,"2,543.00",HMRC monthly deductions for SSC August 2022,3RD PARTY PAYME
"Department for Business, Innovation and Skills",UK Shared Business Services Ltd,14/09/2022,Apprenticeship Levy,Corporate HR,HM Revenue & Customs,99801128,"6,858.00",HMRC monthly deductions for SSC August 2022,3RD PARTY PAYME
"Department for Business, Innovation and Skills",UK Shared Business Services Ltd,14/09/2022,Staff Training,HRSD Recoverables,Indigo Business Services Ltd,99804975,"7,560.00",Training,TW9 2PR
"Department for Business, Innovation and Skills",UK Shared Business Services Ltd,14/09/2022,Staff Training,HRSD Recoverables,The Chartered Institute of Payroll Professionals (CIPP),99805350,"3,954.00",Training,B90 4ZL
"Department for Business, Innovation and Skills",UK Shared Business Services Ltd,14/09/2022,T&S - Parking Tolls Congestion Charges,Operational Excellence,Unspecified,99805395,12,"Parking, Tolls, Congestion Charge",HOME
"Department for Business, Innovation and Skills",UK Shared Business Services Ltd,14/09/2022,T&S - Subsistence,Operational Excellence,Unspecified,99805395,45.99,Evening Meal (Actuals),HOME
"Department for Business, Innovation and Skills",UK Shared Business Services Ltd,14/09/2022,T&S - Subsistence,Operational Excellence,Unspecified,99805395,34.81,Lunch (Actuals),HOME
"Department for Business, Innovation and Skills",UK Shared Business Services Ltd,14/09/2022,T&S - Vehicle Hire,Operational Excellence,Unspecified,99805395,30.08,Vehicle Hire/Rental/Fuel (Actuals),HOME
"Department for Business, Innovation and Skills",UK Shared Business Services Ltd,14/09/2022,T&S - Parking Tolls Congestion Charges,Operational Excellence,Unspecified,99805396,20,"Parking, Tolls, Congestion Charge",HOME
"Department for Business, Innovation and Skills",UK Shared Business Services Ltd,14/09/2022,Staff Training,HRSD Recoverables,ASK Europe PLC,99806013,840,Training,MK43 0BT
"Department for Business, Innovation and Skills",UK Shared Business Services Ltd,14/09/2022,NI Payable Salaries,Balance Sheet,HM Revenue & Customs,99806015,"43,127.53",HMRC Shipley PSA 22-23 UK SBS,3RD PARTY PAYME
"Department for Business, Innovation and Skills",UK Shared Business Services Ltd,14/09/2022,Staff Training,HRSD Recoverables,ASK Europe PLC,99806016,840,Training,MK43 0BT
"Department for Business, Innovation and Skills",UK Shared Business Services Ltd,14/09/2022,Contract Staff,Production Services,Proventeq Limited,99806078,"61,230.00",Computer Consumables,RG6 6BU
"Department for Business, Innovation and Skills",UK Shared Business Services Ltd,14/09/2022,Staff Training,HRSD Recoverables,The Chartered Institute of Payroll Professionals (CIPP),99806083,"3,954.00",Training,B90 4ZL
"Department for Business, Innovation and Skills",UK Shared Business Services Ltd,14/09/2022,Staff Training,Training Services,The Chartered Institute of Payroll Professionals (CIPP),99806108,"3,954.00",Training,B90 4ZL
"Department for Business, Innovation and Skills",UK Shared Business Services Ltd,14/09/2022,Staff Training,Training Services,The Chartered Institute of Payroll Professionals (CIPP),99806109,140,Training,B90 4ZL
"Department for Business, Innovation and Skills",UK Shared Business Services Ltd,15/09/2022,Telecoms - Land Line Rental,Production Services,British Telecom Plc (BT),99785785,"12,596.43",SR11237768 REGULAR CHARGES 1 AUG 22 - 31 AUG 22,S98 1BT
"Department for Business, Innovation and Skills",UK Shared Business Services Ltd,15/09/2022,Voluntary Deductions,Balance Sheet,Civil Service Benevolent Fund,99801129,18,SSC THIRD PARTY PAYMENTS August2022,SM3 8DY
"Department for Business, Innovation and Skills",UK Shared Business Services Ltd,15/09/2022,Union Deductions,Balance Sheet,PCS Union,99801130,924.4,SSC THIRD PARTY PAYMENTS August2022,SW11 2LN
"Department for Business, Innovation and Skills",UK Shared Business Services Ltd,15/09/2022,Voluntary Deductions,Balance Sheet,Swindon Office Sports and Social Club,99801131,178,SSC THIRD PARTY PAYMENTS August2022,SN2 1EU
"Department for Business, Innovation and Skills",UK Shared Business Services Ltd,15/09/2022,Ees Pension Deductions - JSS,Balance Sheet,RCPS Pension,99801132,"84,921.68",RCPS monthly contributions for SSC August2022,SN2 1UY.
"Department for Business, Innovation and Skills",UK Shared Business Services Ltd,15/09/2022,Ers Pension Deductions - JSS,Balance Sheet,RCPS Pension,99801133,"393,369.29",RCPS monthly contributions for SSC August2022,SN2 1UY.
"Department for Business, Innovation and Skills",UK Shared Business Services Ltd,15/09/2022,Other Pension Deductions,Balance Sheet,Scottish Widows,99801134,100,SSC THIRD PARTY PAYMENTS August2022,EH16 5BU
"Department for Business, Innovation and Skills",UK Shared Business Services Ltd,15/09/2022,Partnership Pension Deductions,Balance Sheet,Scottish Widows,99801135,"3,791.15",SSC THIRD PARTY PAYMENTS August2022,EH16 5BU
"Department for Business, Innovation and Skills",UK Shared Business Services Ltd,15/09/2022,Partnership Pension Deductions,Balance Sheet,Standard Life Assurance Ltd,99801136,391.31,SSC THIRD PARTY PAYMENTS August2022,EH1 2DH
"Department for Business, Innovation and Skills",UK Shared Business Services Ltd,15/09/2022,Ees Pension Deductions - MRC,Balance Sheet,JLT Pensions Administration Ltd T/A JLT Employee Benefits,99801137,"3,870.29",SSC THIRD PARTY PAYMENTS August2022,PRINCIPAL SECTI
"Department for Business, Innovation and Skills",UK Shared Business Services Ltd,15/09/2022,Ers Pension Deductions - MRC,Balance Sheet,JLT Pensions Administration Ltd T/A JLT Employee Benefits,99801138,"10,062.75",SSC THIRD PARTY PAYMENTS August2022,PRINCIPAL SECTI
"Department for Business, Innovation and Skills",UK Shared Business Services Ltd,15/09/2022,Voluntary Deductions,Balance Sheet,BHCA (Services) Ltd,99801139,59.15,SSC THIRD PARTY PAYMENTS August2022,NN14 1UE
"Department for Business, Innovation and Skills",UK Shared Business Services Ltd,15/09/2022,Ees Pension Deductions - MyCSP,Balance Sheet,Cabinet Office RM Shared Services,99801140,145.36,UKSBS THIRD PARTY PAYMENTS August 2022,FY5 3TA
"Department for Business, Innovation and Skills",UK Shared Business Services Ltd,15/09/2022,Ers Pension Deductions - MyCSP,Balance Sheet,Cabinet Office RM Shared Services,99801141,722.78,UKSBS THIRD PARTY PAYMENTS August 2022,FY5 3TA
"Department for Business, Innovation and Skills",UK Shared Business Services Ltd,15/09/2022,Telecoms - Maintenance & Repairs,Production Services,SCB Global Ltd,99805641,246.41,Computer Consumables,E14 5AA
"Department for Business, Innovation and Skills",UK Shared Business Services Ltd,15/09/2022,T&S - Other Charges,"Risk, Information & Security Compliance",Unspecified,99805728,13.99,Home-working Equipment,HOME
"Department for Business, Innovation and Skills",UK Shared Business Services Ltd,15/09/2022,T&S - Accommodation,Central Services Management,Corporate Travel Management (North) Ltd,99806282,0.8,22/02/2022----Hotel Fee,BD1 5HQ
"Department for Business, Innovation and Skills",UK Shared Business Services Ltd,15/09/2022,T&S - Accommodation,Central Services Management,Corporate Travel Management (North) Ltd,99806282,135,22/02/2022--Trafalgar Curio Hil-London Heathrow-Hotel,BD1 5HQ
"Department for Business, Innovation and Skills",UK Shared Business Services Ltd,15/09/2022,T&S - Accommodation,Central Services Management,Corporate Travel Management (North) Ltd,99806282,0.16,Travel & Hotel charges,BD1 5HQ
"Department for Business, Innovation and Skills",UK Shared Business Services Ltd,15/09/2022,T&S - Accommodation,HR Ops,Corporate Travel Management (North) Ltd,99806282,0.8,01/02/2022----Hotel Fee,BD1 5HQ
"Department for Business, Innovation and Skills",UK Shared Business Services Ltd,15/09/2022,T&S - Accommodation,HR Ops,Corporate Travel Management (North) Ltd,99806282,115,01/02/2022--Priory Hotel Caerleon-Swansea-Hotel,BD1 5HQ
"Department for Business, Innovation and Skills",UK Shared Business Services Ltd,15/09/2022,T&S - Accommodation,HR Ops,Corporate Travel Management (North) Ltd,99806282,0.8,21/02/2022----Hotel Fee,BD1 5HQ
"Department for Business, Innovation and Skills",UK Shared Business Services Ltd,15/09/2022,T&S - Accommodation,HR Ops,Corporate Travel Management (North) Ltd,99806282,92.92,21/02/2022-Travelodge Middlesbrough-Teesside-Hotel,BD1 5HQ
"Department for Business, Innovation and Skills",UK Shared Business Services Ltd,15/09/2022,T&S - Accommodation,HR Ops,Corporate Travel Management (North) Ltd,99806282,0.8,21/02/2022---Hotel Fee,BD1 5HQ
"Department for Business, Innovation and Skills",UK Shared Business Services Ltd,15/09/2022,T&S - Accommodation,HR Ops,Corporate Travel Management (North) Ltd,99806282,92.92,21/02/2022-Travelodge Middlesbrough-Teesside-Hotel,BD1 5HQ
"Department for Business, Innovation and Skills",UK Shared Business Services Ltd,15/09/2022,T&S - Accommodation,HR Ops,Corporate Travel Management (North) Ltd,99806282,0.48,Travel & Hotel charges,BD1 5HQ
"Department for Business, Innovation and Skills",UK Shared Business Services Ltd,15/09/2022,T&S - Accommodation,Project Office,Corporate Travel Management (North) Ltd,99806282,0.8,22/02/2022---Hotel Fee,BD1 5HQ
"Department for Business, Innovation and Skills",UK Shared Business Services Ltd,15/09/2022,T&S - Accommodation,Project Office,Corporate Travel Management (North) Ltd,99806282,67,22/02/2022-Jurys Inn Swindon-Bristol-Hotel,BD1 5HQ
"Department for Business, Innovation and Skills",UK Shared Business Services Ltd,15/09/2022,T&S - Accommodation,Project Office,Corporate Travel Management (North) Ltd,99806282,0.8,22/02/2022---Hotel Fee,BD1 5HQ
"Department for Business, Innovation and Skills",UK Shared Business Services Ltd,15/09/2022,T&S - Accommodation,Project Office,Corporate Travel Management (North) Ltd,99806282,75,22/02/2022-Jurys Inn Swindon-Bristol-Hotel,BD1 5HQ
"Department for Business, Innovation and Skills",UK Shared Business Services Ltd,15/09/2022,T&S - Accommodation,Project Office,Corporate Travel Management (North) Ltd,99806282,0.32,Travel & Hotel charges,BD1 5HQ
"Department for Business, Innovation and Skills",UK Shared Business Services Ltd,15/09/2022,T&S - Other Charges,Finance Operations 2,Corporate Travel Management (North) Ltd,99806282,0.25,09/02/2022---Rail Fee,BD1 5HQ
"Department for Business, Innovation and Skills",UK Shared Business Services Ltd,15/09/2022,T&S - Other Charges,Finance Operations 2,Corporate Travel Management (North) Ltd,99806282,33.7,09/02/2022-Newport S.wales-Swindon-Rail,BD1 5HQ
"Department for Business, Innovation and Skills",UK Shared Business Services Ltd,15/09/2022,T&S - Other Charges,Finance Operations 2,Corporate Travel Management (North) Ltd,99806282,0.25,23/02/2022---Rail Fee,BD1 5HQ
"Department for Business, Innovation and Skills",UK Shared Business Services Ltd,15/09/2022,T&S - Other Charges,Finance Operations 2,Corporate Travel Management (North) Ltd,99806282,33.7,23/02/2022-Newport S.wales-Swindon-Rail,BD1 5HQ
"Department for Business, Innovation and Skills",UK Shared Business Services Ltd,15/09/2022,T&S - Public Transport,Central Services Management,Corporate Travel Management (North) Ltd,99806282,0.25,22/02/2022---Rail Fee,BD1 5HQ
"Department for Business, Innovation and Skills",UK Shared Business Services Ltd,15/09/2022,T&S - Public Transport,Central Services Management,Corporate Travel Management (North) Ltd,99806282,75,22/02/2022-Nottingham-ZONE U12* LONDN-Rail,BD1 5HQ
"Department for Business, Innovation and Skills",UK Shared Business Services Ltd,15/09/2022,T&S - Public Transport,Core Services,Corporate Travel Management (North) Ltd,99806282,0.25,14/02/2022---Rail Fee,BD1 5HQ
"Department for Business, Innovation and Skills",UK Shared Business Services Ltd,15/09/2022,T&S - Public Transport,Core Services,Corporate Travel Management (North) Ltd,99806282,39.2,14/02/2022-Cathays-Swindon-Rail,BD1 5HQ
"Department for Business, Innovation and Skills",UK Shared Business Services Ltd,15/09/2022,T&S - Public Transport,Core Services,Corporate Travel Management (North) Ltd,99806282,0.25,21/02/2022---Rail Fee,BD1 5HQ
"Department for Business, Innovation and Skills",UK Shared Business Services Ltd,15/09/2022,T&S - Public Transport,Core Services,Corporate Travel Management (North) Ltd,99806282,39.2,21/02/2022-Cathays-Swindon-Rail,BD1 5HQ
"Department for Business, Innovation and Skills",UK Shared Business Services Ltd,15/09/2022,T&S - Public Transport,DDaT,Corporate Travel Management (North) Ltd,99806282,0.25,14/02/2022---Rail Fee,BD1 5HQ
"Department for Business, Innovation and Skills",UK Shared Business Services Ltd,15/09/2022,T&S - Public Transport,DDaT,Corporate Travel Management (North) Ltd,99806282,39.2,14/02/2022-Cardiff Central-Swindon-Rail,BD1 5HQ
"Department for Business, Innovation and Skills",UK Shared Business Services Ltd,15/09/2022,T&S - Public Transport,DDaT,Corporate Travel Management (North) Ltd,99806282,0.25,15/02/2022---Rail Fee,BD1 5HQ
"Department for Business, Innovation and Skills",UK Shared Business Services Ltd,15/09/2022,T&S - Public Transport,DDaT,Corporate Travel Management (North) Ltd,99806282,39.2,15/02/2022-Cardiff Central-Swindon-Rail,BD1 5HQ
"Department for Business, Innovation and Skills",UK Shared Business Services Ltd,15/09/2022,T&S - Public Transport,DDaT,Corporate Travel Management (North) Ltd,99806282,0.25,24/02/2022---Rail Fee,BD1 5HQ
"Department for Business, Innovation and Skills",UK Shared Business Services Ltd,15/09/2022,T&S - Public Transport,DDaT,Corporate Travel Management (North) Ltd,99806282,39.2,24/02/2022-Cardiff Central-Swindon-Rail,BD1 5HQ
"Department for Business, Innovation and Skills",UK Shared Business Services Ltd,15/09/2022,T&S - Public Transport,Finance Operations 2,Corporate Travel Management (North) Ltd,99806282,0.25,23/02/2022---Rail Fee,BD1 5HQ
"Department for Business, Innovation and Skills",UK Shared Business Services Ltd,15/09/2022,T&S - Public Transport,Finance Operations 2,Corporate Travel Management (North) Ltd,99806282,33.7,23/02/2022-Newport S.wales-Swindon-Rail,BD1 5HQ
"Department for Business, Innovation and Skills",UK Shared Business Services Ltd,15/09/2022,T&S - Public Transport,HR Management,Corporate Travel Management (North) Ltd,99806282,0.25,28/02/2022---Rail Fee,BD1 5HQ
"Department for Business, Innovation and Skills",UK Shared Business Services Ltd,15/09/2022,T&S - Public Transport,HR Management,Corporate Travel Management (North) Ltd,99806282,203.9,28/02/2022-Nottingham-London St Pancras-Rail,BD1 5HQ
"Department for Business, Innovation and Skills",UK Shared Business Services Ltd,15/09/2022,T&S - Public Transport,HR Management,Corporate Travel Management (North) Ltd,99806282,0.13,28/02/2022---Rail Fee,BD1 5HQ
"Department for Business, Innovation and Skills",UK Shared Business Services Ltd,15/09/2022,T&S - Public Transport,HR Management,Corporate Travel Management (North) Ltd,99806282,152.6,28/02/2022-Swindon (wilts)-London Zones 1-6-Rail,BD1 5HQ
"Department for Business, Innovation and Skills",UK Shared Business Services Ltd,15/09/2022,T&S - Public Transport,HR Management,Corporate Travel Management (North) Ltd,99806282,0.12,28/02/2022---Rail Fee,BD1 5HQ
"Department for Business, Innovation and Skills",UK Shared Business Services Ltd,15/09/2022,T&S - Public Transport,HR Management,Corporate Travel Management (North) Ltd,99806282,152.6,28/02/2022-Swindon (wilts)-London Zones 1-6-Rail,BD1 5HQ
"Department for Business, Innovation and Skills",UK Shared Business Services Ltd,15/09/2022,T&S - Public Transport,Partnership Management,Corporate Travel Management (North) Ltd,99806282,0.25,28/02/2022---Rail Fee,BD1 5HQ
"Department for Business, Innovation and Skills",UK Shared Business Services Ltd,15/09/2022,T&S - Public Transport,Partnership Management,Corporate Travel Management (North) Ltd,99806282,130.5,28/02/2022-Whittlesea-London Victoria-Rail,BD1 5HQ
"Department for Business, Innovation and Skills",UK Shared Business Services Ltd,15/09/2022,T&S - Public Transport,Production Services,Corporate Travel Management (North) Ltd,99806282,0.25,15/02/2022---Rail Fee,BD1 5HQ
"Department for Business, Innovation and Skills",UK Shared Business Services Ltd,15/09/2022,T&S - Public Transport,Production Services,Corporate Travel Management (North) Ltd,99806282,95.6,15/02/2022-Chippenham-ZONE U1* LONDN-Rail,BD1 5HQ
"Department for Business, Innovation and Skills",UK Shared Business Services Ltd,15/09/2022,T&S - Public Transport,Production Services,Corporate Travel Management (North) Ltd,99806282,0.5,15/02/2022---Rail Fee,BD1 5HQ
"Department for Business, Innovation and Skills",UK Shared Business Services Ltd,15/09/2022,T&S - Public Transport,Production Services,Corporate Travel Management (North) Ltd,99806282,211.6,15/02/2022-Stonehouse-ZONE U1* LONDN-Rail,BD1 5HQ
"Department for Business, Innovation and Skills",UK Shared Business Services Ltd,15/09/2022,T&S - Public Transport,Project Office,Corporate Travel Management (North) Ltd,99806282,2.85,22/02/2022---Rail Fee,BD1 5HQ
"Department for Business, Innovation and Skills",UK Shared Business Services Ltd,15/09/2022,T&S - Public Transport,Project Office,Corporate Travel Management (North) Ltd,99806282,364,22/02/2022-Middlesbrough-Swindon-Rail,BD1 5HQ
"Department for Business, Innovation and Skills",UK Shared Business Services Ltd,15/09/2022,T&S - Public Transport,Project Office,Corporate Travel Management (North) Ltd,99806282,2.85,22/02/2022---Rail Fee,BD1 5HQ
"Department for Business, Innovation and Skills",UK Shared Business Services Ltd,15/09/2022,T&S - Public Transport,Project Office,Corporate Travel Management (North) Ltd,99806282,364,22/02/2022-Middlesbrough-Swindon-Rail,BD1 5HQ
"Department for Business, Innovation and Skills",UK Shared Business Services Ltd,15/09/2022,T&S - Public Transport,Project Office,Corporate Travel Management (North) Ltd,99806292,0.25,04/09/2022---Rail Fee,BD1 5HQ
"Department for Business, Innovation and Skills",UK Shared Business Services Ltd,15/09/2022,T&S - Public Transport,Project Office,Corporate Travel Management (North) Ltd,99806292,30.6,04/09/2022-Basingstoke-Birmingham New St-Rail,BD1 5HQ
"Department for Business, Innovation and Skills",UK Shared Business Services Ltd,15/09/2022,T&S - Accommodation,Central Services Management,Corporate Travel Management (North) Ltd,99806292,0.8,02/08/2022---Hotel Fee,BD1 5HQ
"Department for Business, Innovation and Skills",UK Shared Business Services Ltd,15/09/2022,T&S - Accommodation,Central Services Management,Corporate Travel Management (North) Ltd,99806292,75,02/08/2022-Jurys Inn Swindon-Bristol-Hotel,BD1 5HQ
"Department for Business, Innovation and Skills",UK Shared Business Services Ltd,15/09/2022,T&S - Accommodation,Central Services Management,Corporate Travel Management (North) Ltd,99806292,0.16,Travel & Hotel charges,BD1 5HQ
"Department for Business, Innovation and Skills",UK Shared Business Services Ltd,15/09/2022,T&S - Accommodation,Finance Services,Corporate Travel Management (North) Ltd,99806292,0.8,21/08/2022---Hotel Fee,BD1 5HQ
"Department for Business, Innovation and Skills",UK Shared Business Services Ltd,15/09/2022,T&S - Accommodation,Finance Services,Corporate Travel Management (North) Ltd,99806292,131.1,21/08/2022-Premier Inn Wolviston Wynyard-Teesside-Hotel,BD1 5HQ
"Department for Business, Innovation and Skills",UK Shared Business Services Ltd,15/09/2022,T&S - Accommodation,Finance Services,Corporate Travel Management (North) Ltd,99806292,0.8,21/08/2022---Hotel Fee,BD1 5HQ
"Department for Business, Innovation and Skills",UK Shared Business Services Ltd,15/09/2022,T&S - Accommodation,Finance Services,Corporate Travel Management (North) Ltd,99806292,131.1,21/08/2022-Premier Inn Wolviston Wynyard-Teesside-Hotel,BD1 5HQ
"Department for Business, Innovation and Skills",UK Shared Business Services Ltd,15/09/2022,T&S - Accommodation,Finance Services,Corporate Travel Management (North) Ltd,99806292,0.8,21/08/2022---Hotel Fee,BD1 5HQ
"Department for Business, Innovation and Skills",UK Shared Business Services Ltd,15/09/2022,T&S - Accommodation,Finance Services,Corporate Travel Management (North) Ltd,99806292,131.1,21/08/2022-Premier Inn Wolviston Wynyard-Teesside-Hotel,BD1 5HQ
"Department for Business, Innovation and Skills",UK Shared Business Services Ltd,15/09/2022,T&S - Accommodation,Finance Services,Corporate Travel Management (North) Ltd,99806292,0.8,31/08/2022---Hotel Fee,BD1 5HQ
"Department for Business, Innovation and Skills",UK Shared Business Services Ltd,15/09/2022,T&S - Accommodation,Finance Services,Corporate Travel Management (North) Ltd,99806292,65,31/08/2022-Village Swindon-Bristol-Hotel,BD1 5HQ
"Department for Business, Innovation and Skills",UK Shared Business Services Ltd,15/09/2022,T&S - Accommodation,Finance Services,Corporate Travel Management (North) Ltd,99806292,0.8,31/08/2022---Hotel Fee,BD1 5HQ
"Department for Business, Innovation and Skills",UK Shared Business Services Ltd,15/09/2022,T&S - Accommodation,Finance Services,Corporate Travel Management (North) Ltd,99806292,65,31/08/2022-Village Swindon-Bristol-Hotel,BD1 5HQ
"Department for Business, Innovation and Skills",UK Shared Business Services Ltd,15/09/2022,T&S - Accommodation,Finance Services,Corporate Travel Management (North) Ltd,99806292,0.8,31/08/2022---Hotel Fee,BD1 5HQ
"Department for Business, Innovation and Skills",UK Shared Business Services Ltd,15/09/2022,T&S - Accommodation,Finance Services,Corporate Travel Management (North) Ltd,99806292,65,31/08/2022-Village Swindon-Bristol-Hotel,BD1 5HQ
"Department for Business, Innovation and Skills",UK Shared Business Services Ltd,15/09/2022,T&S - Accommodation,Finance Services,Corporate Travel Management (North) Ltd,99806292,0.8,31/08/2022---Hotel Fee,BD1 5HQ
"Department for Business, Innovation and Skills",UK Shared Business Services Ltd,15/09/2022,T&S - Accommodation,Finance Services,Corporate Travel Management (North) Ltd,99806292,65,31/08/2022-Village Swindon-Bristol-Hotel,BD1 5HQ
"Department for Business, Innovation and Skills",UK Shared Business Services Ltd,15/09/2022,T&S - Accommodation,Finance Services,Corporate Travel Management (North) Ltd,99806292,1.12,Travel & Hotel charges,BD1 5HQ
"Department for Business, Innovation and Skills",UK Shared Business Services Ltd,15/09/2022,T&S - Accommodation,HR Ops,Corporate Travel Management (North) Ltd,99806292,0.8,18/07/2022---Hotel Fee,BD1 5HQ
"Department for Business, Innovation and Skills",UK Shared Business Services Ltd,15/09/2022,T&S - Accommodation,HR Ops,Corporate Travel Management (North) Ltd,99806292,176.7,18/07/2022-Premier Inn Wolviston Wynyard-Teesside-Hotel,BD1 5HQ
"Department for Business, Innovation and Skills",UK Shared Business Services Ltd,15/09/2022,T&S - Accommodation,HR Ops,Corporate Travel Management (North) Ltd,99806292,0.16,Travel & Hotel charges,BD1 5HQ
"Department for Business, Innovation and Skills",UK Shared Business Services Ltd,15/09/2022,T&S - Accommodation,HR Ops & Specialists,Corporate Travel Management (North) Ltd,99806292,0.8,17/08/2022---Hotel Fee,BD1 5HQ
"Department for Business, Innovation and Skills",UK Shared Business Services Ltd,15/09/2022,T&S - Accommodation,HR Ops & Specialists,Corporate Travel Management (North) Ltd,99806292,0.8,17/08/2022---Hotel Fee,BD1 5HQ
"Department for Business, Innovation and Skills",UK Shared Business Services Ltd,15/09/2022,T&S - Accommodation,HR Ops & Specialists,Corporate Travel Management (North) Ltd,99806292,0.32,Travel & Hotel charges,BD1 5HQ
"Department for Business, Innovation and Skills",UK Shared Business Services Ltd,15/09/2022,T&S - Accommodation,Partnership Management,Corporate Travel Management (North) Ltd,99806292,0.8,01/08/2022---Hotel Fee,BD1 5HQ
"Department for Business, Innovation and Skills",UK Shared Business Services Ltd,15/09/2022,T&S - Accommodation,Partnership Management,Corporate Travel Management (North) Ltd,99806292,75,01/08/2022-Jurys Inn Swindon-Bristol-Hotel,BD1 5HQ
"Department for Business, Innovation and Skills",UK Shared Business Services Ltd,15/09/2022,T&S - Accommodation,Partnership Management,Corporate Travel Management (North) Ltd,99806292,0.16,Travel & Hotel charges,BD1 5HQ
"Department for Business, Innovation and Skills",UK Shared Business Services Ltd,15/09/2022,T&S - Accommodation,Service Improvement and Assurance,Corporate Travel Management (North) Ltd,99806292,0.8,16/08/2022---Hotel Fee,BD1 5HQ
"Department for Business, Innovation and Skills",UK Shared Business Services Ltd,15/09/2022,T&S - Accommodation,Service Improvement and Assurance,Corporate Travel Management (North) Ltd,99806292,150,16/08/2022-Jurys Inn Swindon-Bristol-Hotel,BD1 5HQ
"Department for Business, Innovation and Skills",UK Shared Business Services Ltd,15/09/2022,T&S - Accommodation,Service Improvement and Assurance,Corporate Travel Management (North) Ltd,99806292,0.16,Travel & Hotel charges,BD1 5HQ
"Department for Business, Innovation and Skills",UK Shared Business Services Ltd,15/09/2022,T&S - Other Charges,Finance Operations 2,Corporate Travel Management (North) Ltd,99806292,0.25,02/08/2022---Rail Fee,BD1 5HQ
"Department for Business, Innovation and Skills",UK Shared Business Services Ltd,15/09/2022,T&S - Other Charges,Finance Operations 2,Corporate Travel Management (North) Ltd,99806292,35,02/08/2022-Newport S.wales-Swindon-Rail,BD1 5HQ
"Department for Business, Innovation and Skills",UK Shared Business Services Ltd,15/09/2022,T&S - Other Charges,Finance Operations 2,Corporate Travel Management (North) Ltd,99806292,0.25,16/08/2022---Rail Fee,BD1 5HQ
"Department for Business, Innovation and Skills",UK Shared Business Services Ltd,15/09/2022,T&S - Other Charges,Finance Operations 2,Corporate Travel Management (North) Ltd,99806292,35,16/08/2022-Newport S.wales-Swindon-Rail,BD1 5HQ
"Department for Business, Innovation and Skills",UK Shared Business Services Ltd,15/09/2022,T&S - Other Charges,Finance Operations 2,Corporate Travel Management (North) Ltd,99806292,0.25,17/08/2022---Rail Fee,BD1 5HQ
"Department for Business, Innovation and Skills",UK Shared Business Services Ltd,15/09/2022,T&S - Other Charges,Finance Operations 2,Corporate Travel Management (North) Ltd,99806292,35,17/08/2022-Newport S.wales-Swindon-Rail,BD1 5HQ
"Department for Business, Innovation and Skills",UK Shared Business Services Ltd,15/09/2022,T&S - Other Charges,Finance Operations 2,Corporate Travel Management (North) Ltd,99806292,0.25,24/08/2022---Rail Fee,BD1 5HQ
"Department for Business, Innovation and Skills",UK Shared Business Services Ltd,15/09/2022,T&S - Other Charges,Finance Operations 2,Corporate Travel Management (North) Ltd,99806292,35,24/08/2022-Newport S.wales-Swindon-Rail,BD1 5HQ
"Department for Business, Innovation and Skills",UK Shared Business Services Ltd,15/09/2022,T&S - Other Charges,Finance Operations 2,Corporate Travel Management (North) Ltd,99806292,0.25,31/08/2022---Rail Fee,BD1 5HQ
"Department for Business, Innovation and Skills",UK Shared Business Services Ltd,15/09/2022,T&S - Other Charges,Finance Operations 2,Corporate Travel Management (North) Ltd,99806292,35,31/08/2022-Newport S.wales-Swindon-Rail,BD1 5HQ
"Department for Business, Innovation and Skills",UK Shared Business Services Ltd,15/09/2022,T&S - Public Transport,Category and Continuous Improvement,Corporate Travel Management (North) Ltd,99806292,0.25,04/08/2022---Rail Fee,BD1 5HQ
"Department for Business, Innovation and Skills",UK Shared Business Services Ltd,15/09/2022,T&S - Public Transport,Category and Continuous Improvement,Corporate Travel Management (North) Ltd,99806292,35,04/08/2022-Newport S.wales-Swindon-Rail,BD1 5HQ
"Department for Business, Innovation and Skills",UK Shared Business Services Ltd,15/09/2022,T&S - Public Transport,Category and Continuous Improvement,Corporate Travel Management (North) Ltd,99806292,0.25,06/09/2022---Rail Fee,BD1 5HQ
"Department for Business, Innovation and Skills",UK Shared Business Services Ltd,15/09/2022,T&S - Public Transport,Category and Continuous Improvement,Corporate Travel Management (North) Ltd,99806292,35,06/09/2022-Newport S.wales-Swindon-Rail,BD1 5HQ
"Department for Business, Innovation and Skills",UK Shared Business Services Ltd,15/09/2022,T&S - Public Transport,Category and Continuous Improvement,Corporate Travel Management (North) Ltd,99806292,0.25,06/09/2022---Rail Fee,BD1 5HQ
"Department for Business, Innovation and Skills",UK Shared Business Services Ltd,15/09/2022,T&S - Public Transport,Category and Continuous Improvement,Corporate Travel Management (North) Ltd,99806292,35,06/09/2022-Newport S.wales-Swindon-Rail,BD1 5HQ
"Department for Business, Innovation and Skills",UK Shared Business Services Ltd,15/09/2022,T&S - Public Transport,Category and Continuous Improvement,Corporate Travel Management (North) Ltd,99806292,0.25,09/08/2022---Rail Fee,BD1 5HQ
"Department for Business, Innovation and Skills",UK Shared Business Services Ltd,15/09/2022,T&S - Public Transport,Category and Continuous Improvement,Corporate Travel Management (North) Ltd,99806292,35,09/08/2022-Newport S.wales-Swindon-Rail,BD1 5HQ
"Department for Business, Innovation and Skills",UK Shared Business Services Ltd,15/09/2022,T&S - Public Transport,Category and Continuous Improvement,Corporate Travel Management (North) Ltd,99806292,0.25,09/08/2022---Rail Fee,BD1 5HQ
"Department for Business, Innovation and Skills",UK Shared Business Services Ltd,15/09/2022,T&S - Public Transport,Category and Continuous Improvement,Corporate Travel Management (North) Ltd,99806292,49.2,09/08/2022-Bridgend-Swindon-Rail,BD1 5HQ
"Department for Business, Innovation and Skills",UK Shared Business Services Ltd,15/09/2022,T&S - Public Transport,Category and Continuous Improvement,Corporate Travel Management (North) Ltd,99806292,0.25,11/08/2022---Rail Fee,BD1 5HQ
"Department for Business, Innovation and Skills",UK Shared Business Services Ltd,15/09/2022,T&S - Public Transport,Category and Continuous Improvement,Corporate Travel Management (North) Ltd,99806292,49.2,11/08/2022-Bridgend-Swindon-Rail,BD1 5HQ
"Department for Business, Innovation and Skills",UK Shared Business Services Ltd,15/09/2022,T&S - Public Transport,Category and Continuous Improvement,Corporate Travel Management (North) Ltd,99806292,0.25,16/08/2022---Rail Fee,BD1 5HQ
"Department for Business, Innovation and Skills",UK Shared Business Services Ltd,15/09/2022,T&S - Public Transport,Category and Continuous Improvement,Corporate Travel Management (North) Ltd,99806292,26.2,16/08/2022-Bristol Parkway-Swindon-Rail,BD1 5HQ
"Department for Business, Innovation and Skills",UK Shared Business Services Ltd,15/09/2022,T&S - Public Transport,Category and Continuous Improvement,Corporate Travel Management (North) Ltd,99806292,0.25,16/08/2022---Rail Fee,BD1 5HQ
"Department for Business, Innovation and Skills",UK Shared Business Services Ltd,15/09/2022,T&S - Public Transport,Category and Continuous Improvement,Corporate Travel Management (North) Ltd,99806292,35,16/08/2022-Newport S.wales-Swindon-Rail,BD1 5HQ
"Department for Business, Innovation and Skills",UK Shared Business Services Ltd,15/09/2022,T&S - Public Transport,Category and Continuous Improvement,Corporate Travel Management (North) Ltd,99806292,0.25,23/08/2022---Rail Fee,BD1 5HQ
"Department for Business, Innovation and Skills",UK Shared Business Services Ltd,15/09/2022,T&S - Public Transport,Category and Continuous Improvement,Corporate Travel Management (North) Ltd,99806292,26.2,23/08/2022-Bristol Parkway-Swindon-Rail,BD1 5HQ
"Department for Business, Innovation and Skills",UK Shared Business Services Ltd,15/09/2022,T&S - Public Transport,Category and Continuous Improvement,Corporate Travel Management (North) Ltd,99806292,0.25,23/08/2022---Rail Fee,BD1 5HQ
"Department for Business, Innovation and Skills",UK Shared Business Services Ltd,15/09/2022,T&S - Public Transport,Category and Continuous Improvement,Corporate Travel Management (North) Ltd,99806292,35,23/08/2022-Newport S.wales-Swindon-Rail,BD1 5HQ
"Department for Business, Innovation and Skills",UK Shared Business Services Ltd,15/09/2022,T&S - Public Transport,Category and Continuous Improvement,Corporate Travel Management (North) Ltd,99806292,0.25,30/08/2022---Rail Fee,BD1 5HQ
"Department for Business, Innovation and Skills",UK Shared Business Services Ltd,15/09/2022,T&S - Public Transport,Category and Continuous Improvement,Corporate Travel Management (North) Ltd,99806292,26.2,30/08/2022-Bristol Parkway-Swindon-Rail,BD1 5HQ
"Department for Business, Innovation and Skills",UK Shared Business Services Ltd,15/09/2022,T&S - Public Transport,Category and Continuous Improvement,Corporate Travel Management (North) Ltd,99806292,0.25,31/08/2022---Rail Fee,BD1 5HQ
"Department for Business, Innovation and Skills",UK Shared Business Services Ltd,15/09/2022,T&S - Public Transport,Category and Continuous Improvement,Corporate Travel Management (North) Ltd,99806292,35,31/08/2022-Newport S.wales-Swindon-Rail,BD1 5HQ
"Department for Business, Innovation and Skills",UK Shared Business Services Ltd,15/09/2022,T&S - Public Transport,Core Services,Corporate Travel Management (North) Ltd,99806292,0.25,10/08/2022---Rail Fee,BD1 5HQ
"Department for Business, Innovation and Skills",UK Shared Business Services Ltd,15/09/2022,T&S - Public Transport,Core Services,Corporate Travel Management (North) Ltd,99806292,158.7,10/08/2022-Swindon (wilts)-London Zones 1-6-Rail,BD1 5HQ
"Department for Business, Innovation and Skills",UK Shared Business Services Ltd,15/09/2022,T&S - Public Transport,Corporate Finance,Corporate Travel Management (North) Ltd,99806292,0.25,04/08/2022---Rail Fee,BD1 5HQ
"Department for Business, Innovation and Skills",UK Shared Business Services Ltd,15/09/2022,T&S - Public Transport,Corporate Finance,Corporate Travel Management (North) Ltd,99806292,35,04/08/2022-Newport S.wales-Swindon-Rail,BD1 5HQ
"Department for Business, Innovation and Skills",UK Shared Business Services Ltd,15/09/2022,T&S - Public Transport,Corporate Finance,Corporate Travel Management (North) Ltd,99806292,0.25,04/08/2022---Rail Fee,BD1 5HQ
"Department for Business, Innovation and Skills",UK Shared Business Services Ltd,15/09/2022,T&S - Public Transport,Corporate Finance,Corporate Travel Management (North) Ltd,99806292,35,04/08/2022-Pontypool And New Inn-Swindon-Rail,BD1 5HQ
"Department for Business, Innovation and Skills",UK Shared Business Services Ltd,15/09/2022,T&S - Public Transport,Corporate Finance,Corporate Travel Management (North) Ltd,99806292,0.25,04/08/2022---Rail Fee,BD1 5HQ
"Department for Business, Innovation and Skills",UK Shared Business Services Ltd,15/09/2022,T&S - Public Transport,Corporate Finance,Corporate Travel Management (North) Ltd,99806292,35,04/08/2022-Newport S.wales-Swindon-Rail,BD1 5HQ
"Department for Business, Innovation and Skills",UK Shared Business Services Ltd,15/09/2022,T&S - Public Transport,DDaT,Corporate Travel Management (North) Ltd,99806292,0.25,01/09/2022---Rail Fee,BD1 5HQ
"Department for Business, Innovation and Skills",UK Shared Business Services Ltd,15/09/2022,T&S - Public Transport,DDaT,Corporate Travel Management (North) Ltd,99806292,40.7,01/09/2022-Cardiff Central-Swindon-Rail,BD1 5HQ
"Department for Business, Innovation and Skills",UK Shared Business Services Ltd,15/09/2022,T&S - Public Transport,DDaT,Corporate Travel Management (North) Ltd,99806292,0.25,10/08/2022---Rail Fee,BD1 5HQ
"Department for Business, Innovation and Skills",UK Shared Business Services Ltd,15/09/2022,T&S - Public Transport,DDaT,Corporate Travel Management (North) Ltd,99806292,158.7,10/08/2022-Swindon (wilts)-London Zones 1-6-Rail,BD1 5HQ
"Department for Business, Innovation and Skills",UK Shared Business Services Ltd,15/09/2022,T&S - Public Transport,DDaT,Corporate Travel Management (North) Ltd,99806292,0.25,23/08/2022---Rail Fee,BD1 5HQ
"Department for Business, Innovation and Skills",UK Shared Business Services Ltd,15/09/2022,T&S - Public Transport,DDaT,Corporate Travel Management (North) Ltd,99806292,40.7,23/08/2022-Cardiff Central-Swindon-Rail,BD1 5HQ
"Department for Business, Innovation and Skills",UK Shared Business Services Ltd,15/09/2022,T&S - Public Transport,ERP Support,Corporate Travel Management (North) Ltd,99806292,0.25,30/08/2022---Rail Fee,BD1 5HQ
"Department for Business, Innovation and Skills",UK Shared Business Services Ltd,15/09/2022,T&S - Public Transport,ERP Support,Corporate Travel Management (North) Ltd,99806292,40.7,30/08/2022-Cardiff Central-Swindon-Rail,BD1 5HQ
"Department for Business, Innovation and Skills",UK Shared Business Services Ltd,15/09/2022,T&S - Public Transport,Finance Operations 2,Corporate Travel Management (North) Ltd,99806292,0.25,01/09/2022---Rail Fee,BD1 5HQ
"Department for Business, Innovation and Skills",UK Shared Business Services Ltd,15/09/2022,T&S - Public Transport,Finance Operations 2,Corporate Travel Management (North) Ltd,99806292,35,01/09/2022-Abergavenny-Swindon-Rail,BD1 5HQ
"Department for Business, Innovation and Skills",UK Shared Business Services Ltd,15/09/2022,T&S - Public Transport,Finance Operations 2,Corporate Travel Management (North) Ltd,99806292,0.25,15/08/2022---Rail Fee,BD1 5HQ
"Department for Business, Innovation and Skills",UK Shared Business Services Ltd,15/09/2022,T&S - Public Transport,Finance Operations 2,Corporate Travel Management (North) Ltd,99806292,35,15/08/2022-Abergavenny-Swindon-Rail,BD1 5HQ
"Department for Business, Innovation and Skills",UK Shared Business Services Ltd,15/09/2022,T&S - Public Transport,Finance Operations 2,Corporate Travel Management (North) Ltd,99806292,0.25,17/08/2022---Rail Fee,BD1 5HQ
"Department for Business, Innovation and Skills",UK Shared Business Services Ltd,15/09/2022,T&S - Public Transport,Finance Operations 2,Corporate Travel Management (North) Ltd,99806292,35,17/08/2022-Abergavenny-Swindon-Rail,BD1 5HQ
"Department for Business, Innovation and Skills",UK Shared Business Services Ltd,15/09/2022,T&S - Public Transport,Finance Services,Corporate Travel Management (North) Ltd,99806292,0.25,31/08/2022---Rail Fee,BD1 5HQ
"Department for Business, Innovation and Skills",UK Shared Business Services Ltd,15/09/2022,T&S - Public Transport,Finance Services,Corporate Travel Management (North) Ltd,99806292,35,31/08/2022-Abergavenny-Swindon-Rail,BD1 5HQ
"Department for Business, Innovation and Skills",UK Shared Business Services Ltd,15/09/2022,T&S - Public Transport,Partnership Management,Corporate Travel Management (North) Ltd,99806292,0.25,06/09/2022---Rail Fee,BD1 5HQ
"Department for Business, Innovation and Skills",UK Shared Business Services Ltd,15/09/2022,T&S - Public Transport,Partnership Management,Corporate Travel Management (North) Ltd,99806292,181.7,06/09/2022-Peterborough-Swindon-Rail,BD1 5HQ
"Department for Business, Innovation and Skills",UK Shared Business Services Ltd,15/09/2022,T&S - Public Transport,Partnership Management,Corporate Travel Management (North) Ltd,99806292,5,15/07/2022---Rail Fee,BD1 5HQ
"Department for Business, Innovation and Skills",UK Shared Business Services Ltd,15/09/2022,T&S - Public Transport,Partnership Management,Corporate Travel Management (North) Ltd,99806292,-23.5,15/07/2022-Rail Canx/Refund--Rail,BD1 5HQ
"Department for Business, Innovation and Skills",UK Shared Business Services Ltd,15/09/2022,T&S - Public Transport,Project Office,Corporate Travel Management (North) Ltd,99806292,0.25,07/09/2022---Rail Fee,BD1 5HQ
"Department for Business, Innovation and Skills",UK Shared Business Services Ltd,15/09/2022,T&S - Public Transport,Project Office,Corporate Travel Management (North) Ltd,99806292,51,07/09/2022-Birmingham New Street-Swindon-Rail,BD1 5HQ
"Department for Business, Innovation and Skills",UK Shared Business Services Ltd,15/09/2022,T&S - Public Transport,Service Improvement and Assurance,Corporate Travel Management (North) Ltd,99806292,0.12,23/08/2022---Rail Fee,BD1 5HQ
"Department for Business, Innovation and Skills",UK Shared Business Services Ltd,15/09/2022,T&S - Public Transport,Service Improvement and Assurance,Corporate Travel Management (North) Ltd,99806292,35,23/08/2022-Swindon (wilts)-Newport Gwent-Rail,BD1 5HQ
"Department for Business, Innovation and Skills",UK Shared Business Services Ltd,15/09/2022,T&S - Public Transport,Service Improvement and Assurance,Corporate Travel Management (North) Ltd,99806292,0.13,23/08/2022---Rail Fee,BD1 5HQ
"Department for Business, Innovation and Skills",UK Shared Business Services Ltd,15/09/2022,T&S - Public Transport,Service Improvement and Assurance,Corporate Travel Management (North) Ltd,99806292,35,23/08/2022-Swindon (wilts)-Newport Gwent-Rail,BD1 5HQ
"Department for Business, Innovation and Skills",UK Shared Business Services Ltd,16/09/2022,Conferences & Seminars,"Risk, Information & Security Compliance",Unspecified,99795502,"1,194.00",Conference/Course Fees (Actuals),HOME
"Department for Business, Innovation and Skills",UK Shared Business Services Ltd,16/09/2022,Other Staff Benefits,People,Amazon EU SARL,99806677,725,ZZ-Employee Benefits,EC2A 2FA
"Department for Business, Innovation and Skills",UK Shared Business Services Ltd,16/09/2022,Recruitment Costs,Corporate HR,Agenda Resource Management Ltd,99807054,446.72,Professional Services,HU12 8YJ
"Department for Business, Innovation and Skills",UK Shared Business Services Ltd,16/09/2022,Recruitment Costs,"Risk, Information & Security Compliance",Forces Employment Charity,99807093,420,Recruitment Services,SW1W 9RB
"Department for Business, Innovation and Skills",UK Shared Business Services Ltd,16/09/2022,Contract Staff,Professional Services,Hays Specialist Recruitment Ltd,99807153,636,Recruitment Services,KT3 4QF
"Department for Business, Innovation and Skills",UK Shared Business Services Ltd,20/09/2022,T&S - Vehicle Hire,Contact Centres,Enterprise Rent-A-Car UK Ltd,99806777,139.52, 17/07/22 - 21/07/22,GL2 5DA
"Department for Business, Innovation and Skills",UK Shared Business Services Ltd,20/09/2022,T&S - Vehicle Hire,Contact Centres,Enterprise Rent-A-Car UK Ltd,99806777,27.9,SR11282320 SUMMARY NUMBER 30442708,GL2 5DA
"Department for Business, Innovation and Skills",UK Shared Business Services Ltd,20/09/2022,Computer Software Licences,ERP Support,Oracle Corporation UK Ltd,99807278,"515,201.75",Core Service Bundle - June 22 - Aug 22,BH7 7DA
"Department for Business, Innovation and Skills",UK Shared Business Services Ltd,20/09/2022,Computer Software Licences,ERP Support,Oracle Corporation UK Ltd,99807278,"204,320.03",Grants Service Bundle - June 22 - Aug 22,BH7 7DA
"Department for Business, Innovation and Skills",UK Shared Business Services Ltd,20/09/2022,Computer Software Licences,ERP Support,Oracle Corporation UK Ltd,99807278,"20,404.68",Image Capture Bundle - June 22 - Aug 22,BH7 7DA
"Department for Business, Innovation and Skills",UK Shared Business Services Ltd,20/09/2022,Computer Software Licences,ERP Support,Oracle Corporation UK Ltd,99807278,"20,623.66",Non-Core Service Bundle - June 22 - Aug 22,BH7 7DA
"Department for Business, Innovation and Skills",UK Shared Business Services Ltd,20/09/2022,Contract Staff,People,Alexander Mann Solutions Ltd,99807903,"1,181.38",Recruitment Services,EC2N 3AQ
"Department for Business, Innovation and Skills",UK Shared Business Services Ltd,20/09/2022,Contract Staff,SHARP,Alexander Mann Solutions Ltd,99807913,"3,387.66",Recruitment Services,EC2N 3AQ
"Department for Business, Innovation and Skills",UK Shared Business Services Ltd,20/09/2022,Contract Staff,Production Services,Alexander Mann Solutions Ltd,99807916,"3,079.62",Recruitment Services,EC2N 3AQ
"Department for Business, Innovation and Skills",UK Shared Business Services Ltd,20/09/2022,Agency Staff,ROE Application Upgrade,Alexander Mann Solutions Ltd,99807920,"4,090.44",Recruitment Services,EC2N 3AQ
"Department for Business, Innovation and Skills",UK Shared Business Services Ltd,21/09/2022,Contract Staff,People,Alexander Mann Solutions Ltd,99791500,"7,696.44",Recruitment Services,EC2N 3AQ
"Department for Business, Innovation and Skills",UK Shared Business Services Ltd,21/09/2022,Contract Staff,People,Alexander Mann Solutions Ltd,99802416,"3,078.58",Recruitment Services,EC2N 3AQ
"Department for Business, Innovation and Skills",UK Shared Business Services Ltd,21/09/2022,Recruitment Costs,Production Services,Robert Half Ltd,99807033,"6,732.00",Recruitment Services,B37 7GN
"Department for Business, Innovation and Skills",UK Shared Business Services Ltd,21/09/2022,T&S - Vehicle Hire,Operational Excellence,Enterprise Rent-A-Car UK Ltd,99807682,98.64, 7/9/22-9/9/22,GL2 5DA
"Department for Business, Innovation and Skills",UK Shared Business Services Ltd,21/09/2022,T&S - Vehicle Hire,Operational Excellence,Enterprise Rent-A-Car UK Ltd,99807682,19.73,SR11285856 / SR11285858 CAR RENTAL,GL2 5DA
"Department for Business, Innovation and Skills",UK Shared Business Services Ltd,21/09/2022,Recruitment Costs,Corporate HR,Agenda Resource Management Ltd,99807735,56.11,Professional Services,HU12 8YJ
"Department for Business, Innovation and Skills",UK Shared Business Services Ltd,21/09/2022,Nursery Deductions,Balance Sheet,EDENRED (UK GROUP) LTD,99807738,25,SR11287500 CHILDCARE VOUCHERS,SW1V 2RS
"Department for Business, Innovation and Skills",UK Shared Business Services Ltd,21/09/2022,Nursery Deductions,Balance Sheet,EDENRED (UK GROUP) LTD,99807740,"1,300.00",SR11287500 CHILDCARE VOUCHERS,SW1V 2RS
"Department for Business, Innovation and Skills",UK Shared Business Services Ltd,21/09/2022,T&S - Other Charges,D&I Management,Unspecified,99807812,59,Miscellaneous (Actuals),HOME
"Department for Business, Innovation and Skills",UK Shared Business Services Ltd,21/09/2022,Contract Staff,Production Services,Alexander Mann Solutions Ltd,99807890,"3,465.30",Recruitment Services,EC2N 3AQ
"Department for Business, Innovation and Skills",UK Shared Business Services Ltd,21/09/2022,Staff Training,HRSD Recoverables,ASK Europe PLC,99808225,504,Training,MK43 0BT
"Department for Business, Innovation and Skills",UK Shared Business Services Ltd,21/09/2022,Other Staff Benefits,Resourcing,BMI Healthcare Limited,99808266,333,ZZ-Employee Benefits,SE3 9LG
"Department for Business, Innovation and Skills",UK Shared Business Services Ltd,21/09/2022,Corporate Events,Production Services,Great Western Hotel (Swindon) Ltd,99808308,319,Conference & Venues,SN1 1DH
"Department for Business, Innovation and Skills",UK Shared Business Services Ltd,22/09/2022,Data Storage & Recovery,Accounting,Restore plc,99780690,967.74,Computing Services,RH1 5DY
"Department for Business, Innovation and Skills",UK Shared Business Services Ltd,22/09/2022,Staff Training,HRSD Recoverables,The Retirement Counselling Service Ltd,99802336,"1,320.00",Training,GU34 5HT
"Department for Business, Innovation and Skills",UK Shared Business Services Ltd,22/09/2022,Health & Safety (inc. Medicals & Opticians),Corporate Finance,Unspecified,99809835,15,Medical Fees & Vaccinations (Actuals),HOME
"Department for Business, Innovation and Skills",UK Shared Business Services Ltd,22/09/2022,Health & Safety (inc. Medicals & Opticians),Finance Operations 1,Unspecified,99809836,70,Medical Fees & Vaccinations (Actuals),HOME
"Department for Business, Innovation and Skills",UK Shared Business Services Ltd,23/09/2022,Computing Consumables,Production Services,Probrand Ltd,99772719,2.4,Computer Consumables,SMARTFORM
"Department for Business, Innovation and Skills",UK Shared Business Services Ltd,23/09/2022,Computing Consumables,Production Services,Probrand Ltd,99772719,424.8,Computer Consumables,SMARTFORM
"Department for Business, Innovation and Skills",UK Shared Business Services Ltd,23/09/2022,Consultancy Services,Interfaces & API Mgmt,Software AG (UK) Ltd,99798492,"4,538.52",Computer Consumables,DE24 8BY
"Department for Business, Innovation and Skills",UK Shared Business Services Ltd,23/09/2022,Data Storage & Recovery,Accounting,Restore plc,99801457,453.3,Computing Services,RH1 5DY
"Department for Business, Innovation and Skills",UK Shared Business Services Ltd,23/09/2022,Data Storage & Recovery,Finance Operations 1,Restore plc,99801457,514.44,Computing Services,RH1 5DY
"Department for Business, Innovation and Skills",UK Shared Business Services Ltd,23/09/2022,Computing Consumables,Network Improvements,Curvature Solutions Ltd,99805794,"10,440.00",Computer Consumables,B45 9PZ
"Department for Business, Innovation and Skills",UK Shared Business Services Ltd,23/09/2022,Computing Consumables,Network Improvements,Curvature Solutions Ltd,99805794,"17,400.00",Computer Consumables,B45 9PZ
"Department for Business, Innovation and Skills",UK Shared Business Services Ltd,23/09/2022,T&S - Other Charges,Contact Centres,Unspecified,99810229,106.99,Home-working Equipment,HOME
"Department for Business, Innovation and Skills",UK Shared Business Services Ltd,23/09/2022,T&S - Public Transport,Project Office,Unspecified,99810230,10,Public Transport - Taxi Fare (Actuals),HOME
"Department for Business, Innovation and Skills",UK Shared Business Services Ltd,23/09/2022,T&S - Public Transport,Project Office,Unspecified,99810231,14,Public Transport - Taxi Fare (Actuals),HOME
"Department for Business, Innovation and Skills",UK Shared Business Services Ltd,23/09/2022,T&S - Subsistence,Project Office,Unspecified,99810231,19.63,Evening Meal (Actuals),HOME
"Department for Business, Innovation and Skills",UK Shared Business Services Ltd,23/09/2022,T&S - Mileage,"D&I Digital, Data & Analytics",Unspecified,99810232,63.23,Mileage - Car (excl Home to Office),HOME
"Department for Business, Innovation and Skills",UK Shared Business Services Ltd,26/09/2022,Printing & Stationery,Production Services,Konica Minolta Business Solutions (UK) Ltd,99796442,"1,817.28",Computer Consumables,SS14 3AR
"Department for Business, Innovation and Skills",UK Shared Business Services Ltd,26/09/2022,Staff Training,Training Services,The Chartered Institute of Payroll Professionals (CIPP),99808258,-140,Training,B90 4ZL
"Department for Business, Innovation and Skills",UK Shared Business Services Ltd,26/09/2022,Staff Training,Training Services,The Chartered Institute of Payroll Professionals (CIPP),99808259,140,Training,B90 4ZL
"Department for Business, Innovation and Skills",UK Shared Business Services Ltd,26/09/2022,Contract Staff,Project Office,Alexander Mann Solutions Ltd,99809403,"3,649.14",Recruitment Services,EC2N 3AQ
"Department for Business, Innovation and Skills",UK Shared Business Services Ltd,26/09/2022,Consultancy Services,"Risk, Information & Security Compliance",SSR General and Management Ltd,99809415,"10,800.00",Consultancy Services,E4 9GA
"Department for Business, Innovation and Skills",UK Shared Business Services Ltd,26/09/2022,Legal & Professional Services,Finance Operations 2,Legal Recoveries and Collections Ltd,99810368,45,Professional Services,NG1 3BF
"Department for Business, Innovation and Skills",UK Shared Business Services Ltd,26/09/2022,Contract Staff,Production Services,Alexander Mann Solutions Ltd,99810383,"2,648.52",Recruitment Services,EC2N 3AQ
"Department for Business, Innovation and Skills",UK Shared Business Services Ltd,26/09/2022,Contract Staff,SHARP,Alexander Mann Solutions Ltd,99810391,"3,387.66",Recruitment Services,EC2N 3AQ
"Department for Business, Innovation and Skills",UK Shared Business Services Ltd,26/09/2022,Staff Training,HRSD Recoverables,Feldman Ltd T/A Brian Feldman and Associates,99810484,780,Training,SW15 5RH
"Department for Business, Innovation and Skills",UK Shared Business Services Ltd,26/09/2022,Staff Training,HRSD Recoverables,Feldman Ltd T/A Brian Feldman and Associates,99810485,"1,320.00",Training,SW15 5RH
"Department for Business, Innovation and Skills",UK Shared Business Services Ltd,26/09/2022,T&S - Other Charges,HR Training & Specialists,Unspecified,99810615,254.98,Miscellaneous (Actuals),HOME
"Department for Business, Innovation and Skills",UK Shared Business Services Ltd,27/09/2022,Computer Software Licences,Production Services,Phoenix Software Ltd,99808310,"10,965.90",Computer Consumables,YO42 1NS
"Department for Business, Innovation and Skills",UK Shared Business Services Ltd,27/09/2022,Computing Consumables,Production Services,Probrand Ltd,99810445,"1,086.00",Computer Consumables,SMARTFORM
"Department for Business, Innovation and Skills",UK Shared Business Services Ltd,27/09/2022,Health & Safety (inc. Medicals & Opticians),Partnership Management,Unspecified,99811155,16.99,Medical Fees & Vaccinations (Actuals),HOME
"Department for Business, Innovation and Skills",UK Shared Business Services Ltd,28/09/2022,International Subscriptions,Production Services,Live Illustration Ltd,99811195,750,Marketing & Design,OX3 7AQ
"Department for Business, Innovation and Skills",UK Shared Business Services Ltd,28/09/2022,T&S - Vehicle Hire,Finance Services,Enterprise Rent-A-Car UK Ltd,99811897,17.32,SR 11294336 CAR HIRE,GL2 5DA
"Department for Business, Innovation and Skills",UK Shared Business Services Ltd,28/09/2022,T&S - Vehicle Hire,Finance Services,Enterprise Rent-A-Car UK Ltd,99811897,86.58,,GL2 5DA
"Department for Business, Innovation and Skills",UK Shared Business Services Ltd,29/09/2022,Contract Staff,Production Services,Hays Specialist Recruitment Ltd,99811620,"7,317.82",Recruitment Services,KT3 4QF
"Department for Business, Innovation and Skills",UK Shared Business Services Ltd,29/09/2022,Contract Staff,Production Services,Hays Specialist Recruitment Ltd,99811621,"5,587.20",Recruitment Services,KT3 4QF
"Department for Business, Innovation and Skills",UK Shared Business Services Ltd,29/09/2022,Contract Staff,Production Services,Hays Specialist Recruitment Ltd,99811622,"6,906.47",Recruitment Services,KT3 4QF
"Department for Business, Innovation and Skills",UK Shared Business Services Ltd,29/09/2022,Corporate Events,Executive Function,Calder Conference Ltd,99811717,"2,583.66",Conference & Venues,LS16 6RF
"Department for Business, Innovation and Skills",UK Shared Business Services Ltd,29/09/2022,T&S - Other Charges,"D&I Digital, Data & Analytics",Unspecified,99812180,55,Miscellaneous (Actuals),HOME
"Department for Business, Innovation and Skills",UK Shared Business Services Ltd,29/09/2022,Staff Training,HRSD Recoverables,Feldman Ltd T/A Brian Feldman and Associates,99812366,720,Training,SW15 5RH
"Department for Business, Innovation and Skills",UK Shared Business Services Ltd,30/09/2022,Contract Staff,People,Alexander Mann Solutions Ltd,99809412,"7,696.44",Recruitment Services,EC2N 3AQ
"Department for Business, Innovation and Skills",UK Shared Business Services Ltd,30/09/2022,IT Cloud Services,Production Services,FlyForm Ltd,99812461,"4,999.20",Computing Software,CF10 3AG
"Department for Business, Innovation and Skills",UK Shared Business Services Ltd,30/09/2022,T&S - Parking Tolls Congestion Charges,Corporate Finance,Unspecified,99813214,10,"Parking, Tolls, Congestion Charge",HOME
"Department for Business, Innovation and Skills",UK Shared Business Services Ltd,30/09/2022,Conferences & Seminars,Finance Operations 1,Unspecified,99813215,90,Conference/Course Fees (Actuals),HOME
"Department for Business, Innovation and Skills",UK Shared Business Services Ltd,27/09/2022,Bank Charges,Corporate Finance,,,605.5,Bank Charges,
"Department for Business, Innovation and Skills",UK Shared Business Services Ltd,27/09/2022,Bank Charges,Corporate Finance,,,25.22,Bank Charges,
